[Event "Cerrado Blitz Quart 2018"]
[Site "Quart (Valencia), Spain"]
[Date "2018.08.30"]
[Round "2.3"]
[White "Lara Lopez, Sergio"]
[Black "Diaz Velandia, J Manuel"]
[Result "0-1"]
[TimeControl "7 minutos +3s por jugada"]
[BlackTitle "FM"]
[WhiteFideId "2268400"]
[BlackFideId "3901939"]
[WhiteElo "2165"]
[BlackElo "2367"]

1. e4 {[%clk 00:07:05]} c6 {[%clk 00:07:06]} 2. Nc3 {[%clk 00:07:03]} {[%emt
00:00:04]} d5 {[%clk 00:07:07]} 3. d4 {[%clk 00:07:04]} {[%emt 00:00:02]} dxe4
{[%clk 00:07:09]} {[%emt 00:00:01]} 4. Nxe4 {[%clk 00:07:06]} {[%emt 00:00:01]}
Nf6 {[%clk 00:07:11]} 5. Ng3 {[%clk 00:07:03]} {[%emt 00:00:06]} h5 {[%clk
00:07:13]} {[%emt 00:00:01]} 6. h4 {[%clk 00:06:58]} {[%emt 00:00:08]} Bg4
{[%clk 00:07:14]} {[%emt 00:00:01]} 7. Be2 {[%clk 00:06:55]} {[%emt 00:00:07]}
e6 {[%clk 00:07:16]} 8. Bg5 {[%clk 00:06:47]} {[%emt 00:00:11]} Qa5+ {[%clk
00:06:48]} {[%emt 00:00:31]} 9. c3 {[%clk 00:06:42]} {[%emt 00:00:08]} Nbd7
{[%clk 00:06:45]} {[%emt 00:00:06]} 10. Nf3 {[%clk 00:06:37]} {[%emt 00:00:08]}
Bd6 {[%clk 00:06:46]} {[%emt 00:00:02]} 11. Nf1 {[%clk 00:06:30]} {[%emt
00:00:10]} Ne4 {[%clk 00:06:48]} {[%emt 00:00:02]} 12. N1d2 {[%clk 00:06:00]}
{[%emt 00:00:33]} Nxg5 {[%clk 00:06:20]} {[%emt 00:00:31]} 13. Nxg5 {[%clk
00:05:58]} {[%emt 00:00:04]} Bxe2 {[%clk 00:06:17]} {[%emt 00:00:05]} 14. Qxe2
{[%clk 00:06:00]} {[%emt 00:00:02]} Qf5 {[%clk 00:06:08]} {[%emt 00:00:12]} 15.
Nc4 {[%clk 00:05:49]} {[%emt 00:00:14]} Bc7 {[%clk 00:06:09]} {[%emt 00:00:02]}
16. Ne4 {[%clk 00:05:51]} {[%emt 00:00:02]} Ke7 {[%clk 00:05:57]} {[%emt
00:00:15]} 17. Rh3 {[%clk 00:05:40]} {[%emt 00:00:13]} Nf6 {[%clk 00:05:47]}
{[%emt 00:00:13]} 18. Nxf6 {[%clk 00:05:32]} {[%emt 00:00:11]} gxf6 {[%clk
00:05:36]} {[%emt 00:00:14]} 19. Ne3 {[%clk 00:05:11]} {[%emt 00:00:24]} Qg6
{[%clk 00:05:32]} {[%emt 00:00:07]} 20. d5 {[%clk 00:05:04]} {[%emt 00:00:11]}
Qe4 {[%clk 00:04:22]} {[%emt 00:01:13]} 21. dxc6 {[%clk 00:04:34]} {[%emt
00:00:33]} Qxc6 {[%clk 00:04:23]} {[%emt 00:00:02]} 22. O-O-O {[%clk 00:04:12]}
{[%emt 00:00:25]} Rad8 {[%clk 00:04:22]} {[%emt 00:00:04]} 23. Rf3 {[%clk
00:03:51]} {[%emt 00:00:24]} Rxd1+ {[%clk 00:04:18]} {[%emt 00:00:07]} 24. Qxd1
{[%clk 00:03:29]} {[%emt 00:00:25]} Qe4 {[%clk 00:04:08]} {[%emt 00:00:13]} 25.
Qd4 {[%clk 00:02:36]} {[%emt 00:00:56]} Qxd4 {[%clk 00:04:06]} {[%emt
00:00:05]} 26. cxd4 {[%clk 00:02:39]} Bb6 {[%clk 00:04:04]} {[%emt 00:00:05]}
27. d5 {[%clk 00:02:34]} {[%emt 00:00:08]} Rc8+ {[%clk 00:04:03]} {[%emt
00:00:03]} 28. Kb1 {[%clk 00:02:30]} {[%emt 00:00:06]} Rg8 {[%clk 00:03:47]}
{[%emt 00:00:19]} 29. g3 {[%clk 00:02:24]} {[%emt 00:00:10]} Rc8 {[%clk
00:03:36]} {[%emt 00:00:14]} 30. dxe6 {[%clk 00:02:10]} {[%emt 00:00:17]} fxe6
{[%clk 00:03:37]} {[%emt 00:00:02]} 31. Ng2 {[%clk 00:02:06]} {[%emt 00:00:07]}
e5 {[%clk 00:03:27]} {[%emt 00:00:13]} 32. Ne3 {[%clk 00:01:58]} {[%emt
00:00:12]} Ke6 {[%clk 00:03:20]} {[%emt 00:00:10]} 33. Nf5 {[%clk 00:01:57]}
{[%emt 00:00:04]} Rc7 {[%clk 00:03:22]} 34. Ne3 {[%clk 00:01:46]} {[%emt
00:00:14]} Ba5 {[%clk 00:03:01]} {[%emt 00:00:23]} 35. b3 {[%clk 00:01:10]}
{[%emt 00:00:39]} Bd2 {[%clk 00:02:52]} {[%emt 00:00:12]} 36. Nc4 {[%clk
00:01:12]} {[%emt 00:00:01]} Be1 {[%clk 00:02:54]} 37. Kb2 {[%clk 00:01:08]}
{[%emt 00:00:07]} b5 {[%clk 00:02:50]} {[%emt 00:00:07]} 38. Na3 {[%clk
00:01:02]} {[%emt 00:00:09]} a6 {[%clk 00:02:46]} {[%emt 00:00:07]} 39. Nc2
{[%clk 00:01:03]} {[%emt 00:00:01]} Bd2 {[%clk 00:02:48]} 40. Rd3 {[%clk
00:00:59]} {[%emt 00:00:07]} Ba5 {[%clk 00:02:44]} {[%emt 00:00:07]} 41. Ne3
{[%clk 00:01:00]} {[%emt 00:00:03]} Be1 {[%clk 00:02:35]} {[%emt 00:00:13]} 42.
Nd1 {[%clk 00:00:43]} {[%emt 00:00:20]} Ba5 {[%clk 00:02:26]} {[%emt 00:00:12]}
43. Ne3 {[%clk 00:00:44]} {[%emt 00:00:02]} Rc8 {[%clk 00:02:20]} {[%emt
00:00:09]} 44. f4 {[%clk 00:00:28]} {[%emt 00:00:19]} Bb6 {[%clk 00:01:56]}
{[%emt 00:00:27]} 45. f5+ {[%clk 00:00:19]} {[%emt 00:00:13]} Kf7 {[%clk
00:01:59]} 46. Nc2 {[%clk 00:00:12]} {[%emt 00:00:10]} Rc7 {[%clk 00:01:39]}
{[%emt 00:00:23]} 47. Rd6 {[%clk 00:00:14]} Rb7 {[%clk 00:01:41]} 48. Nb4
{[%clk 00:00:12]} {[%emt 00:00:05]} Bc5 {[%clk 00:01:32]} {[%emt 00:00:12]} 0-1

[Event "Cerrado Blitz Quart 2018"]
[Site "Quart (Valencia), Spain"]
[Date "2018.08.30"]
[Round "2.4"]
[White "Galvan Cipriani, Viviana"]
[Black "Alonso Garcia, Aaron"]
[Result "0-1"]
[TimeControl "7 minutos +3s por jugada"]
[WhiteTitle "WFM"]
[BlackTitle "FM"]
[WhiteFideId "32041144"]
[BlackFideId "24521060"]
[WhiteElo "1948"]
[BlackElo "1604"]

1. c4 {[%clk 00:07:04]} {[%emt 00:00:02]} c5 {[%clk 00:07:05]} 2. Nc3 {[%clk
00:07:06]} {[%emt 00:00:02]} Nc6 {[%clk 00:07:08]} 3. g3 {[%clk 00:07:08]}
{[%emt 00:00:02]} g6 {[%clk 00:07:10]} 4. Bg2 {[%clk 00:07:10]} Bg7 {[%clk
00:07:12]} 5. e4 {[%clk 00:07:12]} {[%emt 00:00:01]} d6 {[%clk 00:07:14]} 6.
Nge2 {[%clk 00:07:13]} {[%emt 00:00:01]} e5 {[%clk 00:07:16]} 7. d3 {[%clk
00:07:15]} {[%emt 00:00:01]} Nge7 {[%clk 00:07:19]} 8. O-O {[%clk 00:07:16]}
{[%emt 00:00:03]} O-O {[%clk 00:07:19]} {[%emt 00:00:03]} 9. Be3 {[%clk
00:07:17]} {[%emt 00:00:02]} Rb8 {[%clk 00:07:13]} {[%emt 00:00:09]} 10. Qd2
{[%clk 00:07:16]} {[%emt 00:00:04]} a6 {[%clk 00:07:15]} {[%emt 00:00:02]} 11.
Bh6 {[%clk 00:06:53]} {[%emt 00:00:25]} b5 {[%clk 00:06:52]} {[%emt 00:00:26]}
12. b3 {[%clk 00:06:55]} {[%emt 00:00:02]} Be6 {[%clk 00:06:12]} {[%emt
00:00:42]} 13. h3 {[%clk 00:06:52]} {[%emt 00:00:06]} Qd7 {[%clk 00:06:11]}
{[%emt 00:00:05]} 14. Kh2 {[%clk 00:06:54]} {[%emt 00:00:01]} f5 {[%clk
00:05:28]} {[%emt 00:00:47]} 15. Nd5 {[%clk 00:06:43]} {[%emt 00:00:13]} b4
{[%clk 00:04:19]} {[%emt 00:01:12]} 16. Rae1 {[%clk 00:06:31]} {[%emt
00:00:14]} fxe4 {[%clk 00:03:29]} {[%emt 00:00:53]} 17. dxe4 {[%clk 00:06:25]}
{[%emt 00:00:09]} Nd4 {[%clk 00:03:17]} {[%emt 00:00:15]} 18. Nxe7+ {[%clk
00:04:40]} {[%emt 00:01:48]} Qxe7 {[%clk 00:03:19]} 19. Ng1 {[%clk 00:04:41]}
{[%emt 00:00:02]} Rf7 {[%clk 00:02:34]} {[%emt 00:00:48]} 20. Be3 {[%clk
00:04:08]} {[%emt 00:00:35]} a5 {[%clk 00:02:31]} {[%emt 00:00:07]} 21. f4
{[%clk 00:03:20]} {[%emt 00:00:50]} Rbf8 {[%clk 00:01:43]} {[%emt 00:00:51]} 22.
Ne2 {[%clk 00:02:59]} {[%emt 00:00:24]} exf4 {[%clk 00:01:17]} {[%emt
00:00:29]} 23. Bxf4 {[%clk 00:01:55]} {[%emt 00:01:06]} Be5 {[%clk 00:01:09]}
{[%emt 00:00:11]} 24. Nxd4 {[%clk 00:01:37]} {[%emt 00:00:22]} Bxd4 {[%clk
00:01:02]} {[%emt 00:00:10]} 25. Qe2 {[%clk 00:00:55]} {[%emt 00:00:45]} g5
{[%clk 00:00:53]} {[%emt 00:00:11]} 26. Bd2 {[%clk 00:00:55]} {[%emt 00:00:03]}
Rf2 {[%clk 00:00:53]} {[%emt 00:00:04]} 27. Rxf2 {[%clk 00:00:19]} {[%emt
00:00:40]} Rxf2 {[%clk 00:00:55]} {[%emt 00:00:01]} 28. Qd1 {[%clk 00:00:20]}
Bxh3 {[%clk 00:00:42]} {[%emt 00:00:16]} 29. Kxh3 {[%clk 00:00:10]} {[%emt
00:00:13]} Qe6+ {[%clk 00:00:43]} {[%emt 00:00:02]} 30. Kh2 {[%clk 00:00:06]}
{[%emt 00:00:07]} Qh6+ {[%clk 00:00:44]} {[%emt 00:00:01]} 31. Kg1 {[%clk
00:00:05]} {[%emt 00:00:04]} Rxd2+ {[%clk 00:00:46]} {[%emt 00:00:01]} 32. Kf1
{[%clk 00:00:06]} {[%emt 00:00:02]} Qf6+ {[%clk 00:00:32]} {[%emt 00:00:17]} 33.
Qf3 {[%emt 00:00:06]} Rf2+ {[%emt 00:00:05]} 0-1

[Event "Cerrado Blitz Quart 2018"]
[Site "Quart (Valencia), Spain"]
[Date "2018.08.30"]
[Round "2.5"]
[White "Vega Gutierrez, Sabrina"]
[Black "Galvan, Jesus"]
[Result "0-1"]
[TimeControl "7 minutos +3s por jugada"]
[WhiteTitle "IM"]
[BlackTitle "FM"]
[WhiteFideId "2219026"]
[BlackFideId "3800458"]
[WhiteElo "2188"]
[BlackElo "2225"]

1. e4 {[%clk 00:07:03]} {[%emt 00:00:03]} c5 {[%clk 00:07:05]} {[%emt
00:00:01]} 2. Nf3 {[%clk 00:07:03]} {[%emt 00:00:03]} Nc6 {[%clk 00:07:06]}
{[%emt 00:00:02]} 3. d4 {[%clk 00:07:05]} {[%emt 00:00:02]} cxd4 {[%clk
00:07:06]} {[%emt 00:00:03]} 4. Nxd4 {[%clk 00:07:06]} {[%emt 00:00:02]} Nf6
{[%clk 00:07:07]} {[%emt 00:00:02]} 5. Nc3 {[%clk 00:07:07]} {[%emt 00:00:02]}
e6 {[%clk 00:07:08]} {[%emt 00:00:02]} 6. a3 {[%clk 00:07:01]} {[%emt
00:00:10]} d5 {[%clk 00:06:53]} {[%emt 00:00:18]} 7. Bb5 {[%clk 00:06:32]}
{[%emt 00:00:32]} Bd7 {[%clk 00:06:37]} {[%emt 00:00:19]} 8. exd5 {[%clk
00:06:29]} {[%emt 00:00:06]} exd5 {[%clk 00:06:29]} {[%emt 00:00:11]} 9. O-O
{[%clk 00:06:28]} {[%emt 00:00:04]} Be7 {[%clk 00:06:29]} {[%emt 00:00:03]} 10.
Be3 {[%clk 00:05:20]} {[%emt 00:01:11]} O-O {[%clk 00:06:26]} {[%emt 00:00:06]}
11. h3 {[%clk 00:04:35]} {[%emt 00:00:49]} Re8 {[%clk 00:05:39]} {[%emt
00:00:50]} 12. Nb3 {[%clk 00:04:15]} {[%emt 00:00:23]} a6 {[%clk 00:05:15]}
{[%emt 00:00:27]} 13. Bxc6 {[%clk 00:04:00]} {[%emt 00:00:18]} bxc6 {[%clk
00:05:01]} {[%emt 00:00:17]} 14. Bc5 {[%clk 00:04:02]} Bf5 {[%clk 00:04:53]}
{[%emt 00:00:12]} 15. Ne2 {[%clk 00:03:10]} {[%emt 00:00:56]} Bxc5 {[%clk
00:04:19]} {[%emt 00:00:36]} 16. Nxc5 {[%clk 00:03:11]} {[%emt 00:00:02]} Qb6
{[%clk 00:04:21]} 17. b4 {[%clk 00:03:10]} {[%emt 00:00:04]} a5 {[%clk
00:04:24]} 18. Nd4 {[%clk 00:03:10]} {[%emt 00:00:03]} axb4 {[%clk 00:03:57]}
{[%emt 00:00:30]} 19. axb4 {[%clk 00:03:01]} {[%emt 00:00:12]} Qxb4 {[%clk
00:03:23]} {[%emt 00:00:37]} 20. Na6 {[%clk 00:02:18]} {[%emt 00:00:46]} Qb6
{[%clk 00:02:41]} {[%emt 00:00:44]} 21. Nxf5 {[%clk 00:02:13]} {[%emt
00:00:08]} Rxa6 {[%clk 00:02:41]} {[%emt 00:00:03]} 22. Rxa6 {[%clk 00:02:15]}
{[%emt 00:00:02]} Qxa6 {[%clk 00:02:43]} 23. Qd4 {[%clk 00:02:17]} Qc4 {[%clk
00:01:26]} {[%emt 00:01:20]} 24. Qxc4 {[%clk 00:01:27]} {[%emt 00:00:53]} dxc4
{[%clk 00:01:28]} 25. Rd1 {[%clk 00:00:53]} {[%emt 00:00:37]} Nd5 {[%clk
00:01:13]} {[%emt 00:00:17]} 26. Rd4 {[%clk 00:00:45]} {[%emt 00:00:12]} Re1+
{[%clk 00:00:40]} {[%emt 00:00:36]} 27. Kh2 {[%clk 00:00:47]} {[%emt 00:00:01]}
g6 {[%clk 00:00:42]} 28. Ne3 {[%clk 00:00:12]} {[%emt 00:00:37]} Nxe3 29. fxe3
{[%clk 00:00:14]} Rxe3 {[%clk 00:00:25]} {[%emt 00:00:05]} 30. Rxc4 {[%clk
00:00:16]} {[%emt 00:00:02]} Re6 {[%clk 00:00:26]} {[%emt 00:00:01]} 31. Kg3
{[%clk 00:00:18]} Kf8 {[%clk 00:00:26]} {[%emt 00:00:04]} 32. Kf4 {[%clk
00:00:15]} {[%emt 00:00:05]} Ke7 {[%clk 00:00:28]} 33. g4 {[%clk 00:00:14]}
{[%emt 00:00:04]} h6 {[%clk 00:00:22]} {[%emt 00:00:09]} 34. h4 {[%clk
00:00:16]} {[%emt 00:00:01]} Kd6 {[%clk 00:00:09]} {[%emt 00:00:16]} 35. Rd4+
{[%clk 00:00:14]} {[%emt 00:00:05]} Ke7 {[%clk 00:00:09]} {[%emt 00:00:03]} 36.
Ra4 {[%clk 00:00:15]} {[%emt 00:00:02]} Re2 {[%clk 00:00:04]} {[%emt 00:00:08]}
37. Rc4 {[%clk 00:00:11]} {[%emt 00:00:07]} Kd6 {[%clk 00:00:05]} {[%emt
00:00:03]} 38. Rc3 {[%clk 00:00:09]} {[%emt 00:00:05]} Rf2+ {[%clk 00:00:06]}
{[%emt 00:00:01]} 39. Kg3 {[%clk 00:00:07]} {[%emt 00:00:05]} Rf1 {[%clk
00:00:07]} {[%emt 00:00:01]} 40. g5 {[%clk 00:00:05]} {[%emt 00:00:05]} h5
{[%clk 00:00:09]} {[%emt 00:00:01]} 41. Rc4 {[%clk 00:00:06]} {[%emt 00:00:02]}
c5 {[%clk 00:00:10]} {[%emt 00:00:02]} 42. Ra4 {[%clk 00:00:04]} {[%emt
00:00:04]} Kd5 {[%clk 00:00:12]} {[%emt 00:00:02]} 43. Ra5 {[%clk 00:00:05]}
{[%emt 00:00:03]} Kd4 {[%clk 00:00:14]} {[%emt 00:00:01]} 44. Ra3 {[%clk
00:00:07]} c4 {[%clk 00:00:15]} {[%emt 00:00:01]} 45. Kg2 {[%clk 00:00:07]}
{[%emt 00:00:03]} Rf4 {[%clk 00:00:16]} {[%emt 00:00:01]} 46. Kg3 {[%clk
00:00:10]} {[%emt 00:00:01]} Rg4+ {[%clk 00:00:19]} 47. Kh3 {[%clk 00:00:12]}
Re4 {[%clk 00:00:21]} 48. Rf3 {[%clk 00:00:14]} {[%emt 00:00:02]} Re3 {[%clk
00:00:23]} 0-1

[Event "Cerrado Blitz Quart 2018"]
[Site "Quart (Valencia), Spain"]
[Date "2018.08.30"]
[Round "3.1"]
[White "Galvan, Jesus"]
[Black "Pena Riasco, Alexander"]
[Result "1-0"]
[TimeControl "7 minutos +3s por jugada"]
[WhiteTitle "FM"]
[BlackTitle "FM"]
[WhiteFideId "3800458"]
[BlackFideId "4403339"]
[WhiteElo "2225"]
[BlackElo "2119"]

1. g3 {[%clk 00:06:58]} {[%emt 00:00:10]} d5 {[%clk 00:07:05]} {[%emt
00:00:07]} 2. Bg2 {[%clk 00:06:59]} Nf6 {[%clk 00:07:07]} {[%emt 00:00:03]} 3.
d3 {[%clk 00:07:00]} c6 {[%clk 00:07:08]} 4. f4 {[%clk 00:06:57]} {[%emt
00:00:06]} e6 {[%clk 00:07:10]} {[%emt 00:00:03]} 5. Nf3 {[%clk 00:06:58]} Bd6
{[%clk 00:07:12]} 6. O-O {[%clk 00:06:59]} {[%emt 00:00:03]} Nbd7 {[%clk
00:07:13]} {[%emt 00:00:04]} 7. Qe1 {[%clk 00:06:54]} {[%emt 00:00:10]} e5
{[%clk 00:07:10]} {[%emt 00:00:03]} 8. e4 {[%clk 00:06:55]} dxe4 {[%clk
00:06:56]} {[%emt 00:00:16]} 9. dxe4 {[%clk 00:06:57]} O-O {[%clk 00:06:45]}
{[%emt 00:00:15]} 10. f5 {[%clk 00:06:58]} {[%emt 00:00:03]} Nc5 {[%clk
00:06:16]} {[%emt 00:00:30]} 11. Nc3 {[%clk 00:06:33]} {[%emt 00:00:28]} a5
{[%clk 00:06:15]} {[%emt 00:00:19]} 12. h3 {[%clk 00:06:28]} b5 {[%clk
00:06:09]} {[%emt 00:00:22]} 13. a3 {[%clk 00:06:30]} Ba6 {[%clk 00:06:01]} 14.
b4 {[%clk 00:06:05]} {[%emt 00:00:22]} axb4 {[%clk 00:05:45]} {[%emt 00:00:16]}
15. axb4 {[%clk 00:06:07]} {[%emt 00:00:07]} Na4 {[%clk 00:05:47]} {[%emt
00:00:03]} 16. Nd1 {[%clk 00:05:42]} {[%emt 00:00:21]} c5 {[%clk 00:05:28]}
{[%emt 00:00:21]} 17. g4 {[%clk 00:05:42]} {[%emt 00:00:41]} Bb7 {[%clk
00:05:15]} {[%emt 00:00:04]} 18. Nf2 {[%clk 00:05:37]} Nb6 {[%clk 00:04:52]}
{[%emt 00:00:09]} 19. Rxa8 {[%clk 00:03:19]} {[%emt 00:02:22]} Qxa8 {[%clk
00:04:53]} {[%emt 00:00:04]} 20. Nd2 {[%clk 00:03:21]} Rd8 {[%clk 00:04:11]}
{[%emt 00:00:41]} 21. g5 {[%clk 00:03:23]} {[%emt 00:00:41]} Ne8 {[%clk
00:04:13]} 22. f6 {[%clk 00:03:01]} {[%emt 00:00:04]} Bc8 {[%clk 00:03:40]}
{[%emt 00:00:22]} 23. bxc5 {[%clk 00:02:45]} {[%emt 00:00:18]} Bxc5 {[%clk
00:03:39]} {[%emt 00:00:04]} 24. Nb3 {[%clk 00:02:47]} {[%emt 00:00:04]} Qc6
{[%clk 00:03:09]} {[%emt 00:00:28]} 25. Be3 {[%clk 00:02:27]} {[%emt 00:00:37]}
Bxe3 {[%clk 00:03:05]} 26. Qxe3 {[%clk 00:02:29]} Nc4 {[%clk 00:03:04]} {[%emt
00:00:04]} 27. Qg3 {[%clk 00:01:48]} {[%emt 00:00:40]} g6 {[%clk 00:03:02]}
{[%emt 00:00:05]} 28. Nd3 {[%clk 00:01:48]} {[%emt 00:00:04]} Qd6 {[%clk
00:02:13]} {[%emt 00:00:48]} 29. Ra1 {[%clk 00:01:25]} {[%emt 00:00:32]} Be6
{[%clk 00:01:56]} {[%emt 00:00:18]} 30. Qf2 {[%clk 00:01:10]} {[%emt 00:00:16]}
Nb6 {[%clk 00:01:11]} {[%emt 00:00:48]} 31. Nbc5 {[%clk 00:01:05]} {[%emt
00:00:15]} Rb8 {[%clk 00:00:55]} {[%emt 00:00:10]} 32. Nxe6 {[%clk 00:00:54]}
{[%emt 00:00:15]} Qxe6 {[%clk 00:00:52]} {[%emt 00:00:07]} 33. Qc5 {[%clk
00:00:45]} {[%emt 00:00:13]} Nc4 {[%clk 00:00:49]} {[%emt 00:00:04]} 34. Ra7
{[%clk 00:00:30]} {[%emt 00:00:34]} Ned6 {[%clk 00:00:45]} 35. Qc7 {[%clk
00:00:23]} {[%emt 00:00:08]} Rf8 {[%clk 00:00:45]} {[%emt 00:00:03]} 36. Qe7
{[%clk 00:00:24]} Qc8 {[%clk 00:00:40]} {[%emt 00:00:07]} 37. Kh2 {[%clk
00:00:22]} {[%emt 00:00:05]} Qb8 {[%clk 00:00:13]} {[%emt 00:00:28]} 38. Qc7
{[%clk 00:00:17]} {[%emt 00:00:06]} Qe8 {[%clk 00:00:09]} {[%emt 00:00:19]} 39.
Nc5 {[%clk 00:00:14]} Nc8 {[%emt 00:00:24]} 40. Kg1 {[%emt 00:00:04]} N4b6
{[%emt 00:00:05]} 41. Ra8 1-0

[Event "Cerrado Blitz Quart 2018"]
[Site "Quart (Valencia), Spain"]
[Date "2018.08.30"]
[Round "3.2"]
[White "Alonso Garcia, Aaron"]
[Black "Vega Gutierrez, Sabrina"]
[Result "0-1"]
[TimeControl "7 minutos +3s por jugada"]
[WhiteTitle "FM"]
[BlackTitle "IM"]
[WhiteFideId "24521060"]
[BlackFideId "2219026"]
[WhiteElo "1604"]
[BlackElo "2188"]

1. e4 {[%clk 00:07:03]} {[%emt 00:00:09]} c5 {[%clk 00:07:05]} 2. Nc3 {[%clk
00:07:04]} a6 {[%clk 00:07:06]} 3. g3 {[%clk 00:07:04]} {[%emt 00:00:03]} b5
{[%clk 00:07:08]} 4. Bg2 {[%clk 00:07:06]} Bb7 {[%clk 00:07:10]} 5. d3 {[%clk
00:07:08]} e6 {[%clk 00:07:11]} 6. Be3 {[%clk 00:07:09]} {[%emt 00:00:04]} Nf6
{[%clk 00:07:05]} {[%emt 00:00:11]} 7. Nh3 {[%clk 00:06:33]} {[%emt 00:00:33]}
d6 {[%clk 00:07:03]} {[%emt 00:00:11]} 8. O-O {[%clk 00:06:31]} {[%emt
00:00:04]} Nc6 {[%clk 00:06:47]} {[%emt 00:00:37]} 9. f4 {[%clk 00:06:22]}
{[%emt 00:00:03]} Qc7 {[%clk 00:06:09]} {[%emt 00:00:26]} 10. f5 {[%clk
00:06:20]} {[%emt 00:00:09]} e5 {[%clk 00:05:49]} {[%emt 00:00:39]} 11. Bg5
{[%clk 00:05:40]} {[%emt 00:00:24]} b4 {[%clk 00:05:45]} {[%emt 00:00:30]} 12.
Nd5 {[%clk 00:05:31]} {[%emt 00:00:04]} Nxd5 {[%clk 00:05:45]} 13. exd5 {[%clk
00:05:34]} Ne7 {[%clk 00:04:55]} {[%emt 00:00:44]} 14. Bxe7 {[%clk 00:05:00]}
{[%emt 00:00:34]} Bxe7 {[%clk 00:04:57]} {[%emt 00:00:31]} 15. c4 {[%clk
00:05:01]} bxc3 {[%clk 00:04:22]} {[%emt 00:00:10]} 16. bxc3 {[%clk 00:05:02]}
{[%emt 00:00:06]} O-O {[%clk 00:04:19]} {[%emt 00:00:04]} 17. f6 {[%clk
00:04:07]} {[%emt 00:00:56]} Bxf6 {[%clk 00:04:03]} {[%emt 00:00:19]} 18. Rxf6
{[%clk 00:04:03]} {[%emt 00:00:38]} gxf6 {[%clk 00:04:05]} 19. Be4 {[%clk
00:03:52]} {[%emt 00:00:03]} f5 {[%clk 00:03:33]} {[%emt 00:00:41]} 20. Qh5
{[%clk 00:03:54]} f6 {[%clk 00:03:30]} {[%emt 00:00:03]} 21. Qxf5 {[%clk
00:03:20]} {[%emt 00:00:40]} Bc8 {[%clk 00:03:27]} {[%emt 00:00:03]} 22. Qh5
{[%clk 00:03:19]} Qg7 {[%clk 00:03:16]} {[%emt 00:00:04]} 23. Rf1 {[%clk
00:03:10]} {[%emt 00:00:05]} Bg4 {[%clk 00:03:01]} {[%emt 00:00:23]} 24. Qh4
{[%clk 00:02:50]} {[%emt 00:00:18]} f5 {[%clk 00:02:56]} {[%emt 00:00:41]} 25.
Bg2 {[%clk 00:02:52]} Be2 {[%clk 00:02:36]} {[%emt 00:00:04]} 26. Rb1 {[%clk
00:02:45]} {[%emt 00:00:18]} Bxd3 {[%clk 00:02:10]} {[%emt 00:00:37]} 27. Rb6
{[%clk 00:02:14]} {[%emt 00:00:16]} Rab8 {[%clk 00:01:45]} {[%emt 00:00:18]} 28.
Rxd6 {[%clk 00:02:11]} {[%emt 00:00:44]} Rb1+ 29. Kf2 Qb7 {[%clk 00:01:06]}
{[%emt 00:00:07]} 30. Bf3 {[%clk 00:00:57]} {[%emt 00:01:20]} Qb2+ {[%clk
00:00:30]} {[%emt 00:01:05]} 31. Ke3 {[%clk 00:00:59]} Qxc3 {[%clk 00:00:22]}
{[%emt 00:00:09]} 32. Qg5+ {[%clk 00:00:08]} {[%emt 00:00:34]} Kh8 {[%clk
00:00:24]} 33. Be2 {[%clk 00:00:05]} {[%emt 00:00:05]} Bxe2+ {[%clk 00:00:14]}
{[%emt 00:00:42]} 34. Kxe2 {[%clk 00:00:07]} Rb2+ 35. Kd1 Qc2+ {[%clk
00:00:10]} 0-1